fUST/lending_fUST_20240803
["ID","MTS","AMOUNT","RATE_DAILY","PERIOD"]
[334032776,1722696644822,-500.0,0.00015342,2]
[334032777,1722696644832,-808.11,0.00015342,2]
[334032779,1722696644842,-500.0,0.00015342,2]
[334032781,1722696644852,-500.0,0.00015342,2]
[334032784,1722696644862,-628.53,0.00015342,2]
[334032786,1722696644871,-1222.92,0.00015342,2]
[334032788,1722696644881,-500.0,0.00015342,2]
[334032789,1722696644891,-641.49,0.00015342,2]
[334032792,1722696644901,-643.01,0.00015342,2]
[334032794,1722696644911,-500.0,0.00015342,2]
[334032795,1722696644920,-2847.33,0.00015342,2]
[334032797,1722696644930,-500.0,0.00015342,2]
[334032800,1722696644940,-552.06,0.00015342,2]
[334032802,1722696644950,-500.0,0.00015342,2]
[334032803,1722696644960,-500.0,0.00015342,2]
[334032806,1722696644970,-674.92,0.00015342,2]
[334032807,1722696644979,-664.29,0.00015342,2]
[334032809,1722696644989,-1037.74,0.00015342,2]
[334032811,1722696644998,-595.71,0.00015342,2]
[334032813,1722696645011,-749.2,0.00015342,2]
[334032816,1722696645021,-742.64,0.00015342,2]
[334032817,1722696645030,-500.0,0.00015342,2]
[334032819,1722696645040,-500.0,0.00015342,2]
[334032821,1722696645049,-1159.12,0.00015342,2]
[334032823,1722696645059,-1623.52,0.00015342,2]
[334032825,1722696645069,-500.0,0.00015342,2]
[334032827,1722696645078,-500.0,0.00015342,2]
[334032829,1722696645088,-817.7,0.00015342,2]
[334032831,1722696645098,-500.0,0.00015342,2]
[334032833,1722696645108,-2232.75,0.00015615,2]
[334032835,1722696645117,-2232.75,0.00015615,2]
[334032837,1722696645126,-2232.75,0.00015615,2]
[334032839,1722696645137,-2232.75,0.00015615,2]
[334032841,1722696645147,-2232.75,0.00015615,2]
[334032843,1722696645156,-2232.92000015,0.00015615,2]
[334032845,1722696645165,-500.0,0.00015616,2]
[334032847,1722696645175,-1017.04,0.00015616,2]
[334032849,1722696645184,-500.0,0.00015616,2]
[334032850,1722696645194,-500.0,0.00015616,2]
[334032861,1722696645290,-500.0,0.00015616,2]
[334032863,1722696645301,-500.0,0.00015616,2]
[334032865,1722696645310,-500.0,0.00015616,2]
[334032866,1722696645320,-620.7,0.00015616,2]
[334032868,1722696645330,-658.72,0.00015616,2]
[334032870,1722696645339,-500.0,0.00015616,2]
[334032872,1722696645349,-1027.88,0.00015616,2]
[334032874,1722696645359,-500.0,0.00015616,2]
[334032876,1722696645369,-500.0,0.00015616,2]
[334032878,1722696645379,-672.6,0.00015616,2]
[334032880,1722696645389,-500.0,0.00015616,2]
[334032882,1722696645399,-500.0,0.00015616,2]
[334032884,1722696645410,-500.0,0.00015616,2]
[334032886,1722696645421,-151.0,0.00015616,2]
[334032888,1722696645432,-896.89,0.00015616,2]
[334032890,1722696645444,-151.0,0.00015616,2]
[334032892,1722696645453,-151.0,0.00015616,2]
[334032894,1722696645463,-500.0,0.00015616,2]
[334032896,1722696645473,-708.36,0.00015616,2]
[334032898,1722696645482,-1540.15,0.00015616,2]
[334032900,1722696645491,-1826.03,0.00015616,2]
[334032902,1722696645503,-5122.5,0.00015616,2]
[334032903,1722696645512,-500.0,0.00015616,2]
[334032904,1722696645521,-314.848175,0.00015616,2]
[334032905,1722696645530,-1522.52,0.00015616,2]
[334032906,1722696645540,-500.0,0.00015616,2]
[334032907,1722696645550,-500.0,0.00015616,2]
[334032908,1722696645559,-314.848175,0.00015616,2]
[334032909,1722696645569,-151.0,0.00015616,2]
[334032911,1722696645578,-685.79,0.00015616,2]
[334032913,1722696645587,-6008.97,0.00015616,2]
[334032914,1722696645597,-151.0,0.00015616,2]
[334032915,1722696645606,-1528.18,0.00015616,2]
[334032916,1722696645615,-500.0,0.00015616,2]
[334032917,1722696645625,-500.0,0.00015616,2]
[334032918,1722696645634,-1962.37,0.00015616,2]
[334032919,1722696645643,-500.0,0.00015616,2]
[334032920,1722696645653,-500.0,0.00015616,2]
[334032921,1722696645662,-459.85653479,0.00015616,2]
[334033350,1722697481444,2192.22222692,0.0001,2]
[334033351,1722697540255,-496.62,0.00010959,2]
[334033352,1722697540278,-300.0,0.00012669,2]
[334033353,1722697540303,-505.35752667,0.0001267,2]
[334033354,1722697640125,-298.0,0.00012669,2]
[334033355,1722697640150,-23.15808135,0.0001267,2]
[334033356,1722697647104,-654.64184167,0.0001267,2]
[334033357,1722697649160,-18051.331401,0.0001267,2]
[334033427,1722697832204,-300.0,0.00012448,2]
[334033429,1722697832214,-4723.39433996,0.00012449,2]
[334033641,1722697838983,-20176.60566004,0.00012449,2]
[334033642,1722697838992,-59100.2928488,0.0001266,2]
[334033643,1722697839002,-1492.75012023,0.0001267,2]
[334033644,1722697839012,-171753.87395405,0.0001267,2]
[334033645,1722697839021,-637.03010488,0.00012886,2]
[334033646,1722697839031,-2074.70333203,0.000129,2]
[334033647,1722697839040,-166.909615,0.00012986,2]
[334033648,1722697839050,-637.03010487,0.00013201,2]
[334033649,1722697839060,-637.03010487,0.00013516,2]
[334033650,1722697839070,-19700.0976163,0.00013688,2]
[334033651,1722697839080,-287.0,0.00013693,2]
[334033652,1722697839196,-1530.17,0.00013697,2]
[334033653,1722697839207,-500.0,0.00013698,2]
[334033654,1722697839216,-500.0,0.00013698,2]
[334033655,1722697839226,-551.57,0.00013698,2]
[334033656,1722697839236,-500.0,0.00013698,2]
[334033657,1722697839246,-500.0,0.00013698,2]
[334033658,1722697839255,-500.0,0.00013698,2]
[334033659,1722697839264,-500.0,0.00013698,2]
[334033660,1722697839276,-1035.61,0.00013698,2]
[334033661,1722697839286,-500.0,0.00013698,2]
[334033662,1722697839295,-500.0,0.00013698,2]
[334033663,1722697839305,-500.0,0.00013698,2]
[334033664,1722697839315,-500.0,0.00013698,2]
[334033665,1722697839326,-500.0,0.00013698,2]
[334033666,1722697839335,-500.0,0.00013698,2]
[334033667,1722697839345,-500.0,0.00013698,2]
[334033668,1722697839355,-500.0,0.00013698,2]
[334033669,1722697839365,-611.65,0.00013698,2]
[334033670,1722697839374,-500.0,0.00013698,2]
[334033671,1722697839384,-500.0,0.00013698,2]
[334033672,1722697839394,-500.0,0.00013698,2]
[334033673,1722697839404,-674.06,0.00013698,2]
[334033674,1722697839414,-500.0,0.00013698,2]
[334033675,1722697839424,-500.0,0.00013698,2]
[334033676,1722697839433,-946.21,0.00013698,2]
[334033677,1722697839443,-632.26,0.00013698,2]
[334033678,1722697839452,-500.0,0.00013698,2]
[334033679,1722697839462,-500.0,0.00013698,2]
[334033680,1722697839473,-635.2,0.00013698,2]
[334033681,1722697839484,-500.0,0.00013698,2]
[334033682,1722697839496,-500.0,0.00013698,2]
[334033683,1722697839505,-500.0,0.00013698,2]
[334033684,1722697839516,-1186.13,0.00013698,2]
[334033685,1722697839526,-1575.72,0.00013698,2]
[334033686,1722697839537,-1806.53,0.00013698,2]
[334033687,1722697839547,-745.9,0.00013698,2]
[334033688,1722697839558,-500.0,0.00013698,2]
[334033689,1722697839568,-500.0,0.00013698,2]
[334033690,1722697839580,-500.0,0.00013698,2]
[334033691,1722697839591,-500.0,0.00013698,2]
[334033692,1722697839602,-4880.44,0.00013698,2]
[334033693,1722697839614,-1608.32,0.00013698,2]
[334033694,1722697839625,-500.0,0.00013698,2]
[334033695,1722697839637,-500.0,0.00013698,2]
[334033696,1722697839647,-6081.52,0.00013698,2]
[334033697,1722697839656,-500.0,0.00013698,2]
[334033698,1722697839666,-500.0,0.00013698,2]
[334033699,1722697839677,-500.0,0.00013698,2]
[334033700,1722697839687,-1929.14,0.00013698,2]
[334033701,1722697839698,-500.0,0.00013698,2]
[334033702,1722697839709,-504.3,0.00013698,2]
[334033703,1722697839720,-938.51,0.00013698,2]
[334033704,1722697839731,-500.0,0.00013698,2]
[334033705,1722697839742,-760.73,0.00013698,2]
[334033706,1722697839753,-500.0,0.00013698,2]
[334033707,1722697839762,-500.0,0.00013698,2]
[334033708,1722697839771,-500.0,0.00013698,2]
[334033709,1722697839783,-1630.14,0.00013698,2]
[334033710,1722697839794,-500.0,0.00013698,2]
[334033711,1722697839805,-500.0,0.00013698,2]
[334033712,1722697839815,-1540.59,0.00013698,2]
[334033713,1722697839827,-500.0,0.00013698,2]
[334033714,1722697839837,-500.0,0.00013698,2]
[334033715,1722697839846,-627.6,0.00013698,2]
[334033717,1722697839855,-500.0,0.00013698,2]
[334033719,1722697839865,-500.0,0.00013698,2]
[334033721,1722697839875,-500.0,0.00013698,2]
[334033722,1722697839885,-500.0,0.00013698,2]
[334033723,1722697839894,-500.0,0.00013698,2]
[334033724,1722697839905,-500.0,0.00013698,2]
[334033725,1722697839914,-500.0,0.00013698,2]
[334033726,1722697839924,-500.0,0.00013698,2]
[334033727,1722697839933,-500.0,0.00013698,2]
[334033728,1722697839943,-367.42233678,0.00013698,2]
[334033729,1722697839954,-500.0,0.00013698,2]
[334033731,1722697839964,-500.0,0.00013698,2]
[334033733,1722697839974,-476.87552723,0.00013698,2]
[334033734,1722697839984,-500.0,0.00013698,2]
[334033735,1722697839993,-500.0,0.00013698,2]
[334033736,1722697840003,-500.0,0.00013698,2]
[334033737,1722697840012,-440.19666409,0.00013698,2]
[334033739,1722697840023,-500.0,0.00013698,2]
[334033741,1722697840033,-500.0,0.00013698,2]
[334033742,1722697840043,-500.0,0.00013698,2]
[334033744,1722697840052,-500.0,0.00013698,2]
[334033746,1722697840062,-500.0,0.00013698,2]
[334033747,1722697840073,-500.0,0.00013698,2]
[334033748,1722697840083,-500.0,0.00013698,2]
[334033749,1722697840094,-500.0,0.00013698,2]
[334033750,1722697840104,-500.0,0.00013698,2]
[334033751,1722697840118,-189.21590815,0.00013698,2]
[334033752,1722697840128,-500.0,0.00013698,2]
[334033753,1722697840137,-423.31755793,0.00013698,2]
[334033754,1722697840146,-472.45277791,0.00013698,2]
[334033755,1722697840157,-500.0,0.00013698,2]
[334033756,1722697840167,-500.0,0.00013698,2]
[334033757,1722697840175,-730.68,0.00013698,2]
[334033758,1722697840187,-500.0,0.00013698,2]
[334033759,1722697840196,-898.02,0.00013698,2]
[334033760,1722697840206,-500.0,0.00013698,2]
[334033761,1722697840216,-500.0,0.00013698,2]
[334033763,1722697840226,-500.0,0.00013698,2]
[334033764,1722697840235,-500.0,0.00013698,2]
[334033766,1722697840245,-500.0,0.00013698,2]
[334033767,1722697840254,-5217.92,0.00013698,2]
[334033769,1722697840264,-500.0,0.00013698,2]
[334033771,1722697840275,-500.0,0.00013698,2]
[334033773,1722697840284,-2292.94,0.00013698,2]
[334033774,1722697840294,-500.0,0.00013698,2]
[334033776,1722697840303,-500.0,0.00013698,2]
[334033778,1722697840312,-500.0,0.00013698,2]
[334033780,1722697840322,-3440.08,0.00013698,2]
[334033781,1722697840332,-700.88,0.00013698,2]
[334033783,1722697840341,-500.0,0.00013698,2]
[334033784,1722697840351,-1397.4,0.00013698,2]
[334033785,1722697840361,-439.534697,0.00013698,2]
[334033786,1722697840370,-500.0,0.00013698,2]
[334033787,1722697840380,-842.22,0.00013698,2]
[334033788,1722697840389,-742.61,0.00013698,2]
[334033789,1722697840399,-500.0,0.00013698,2]
[334033790,1722697840409,-500.0,0.00013698,2]
[334033792,1722697840419,-544.94,0.00013698,2]
[334033794,1722697840429,-500.0,0.00013698,2]
[334033795,1722697840439,-500.0,0.00013698,2]
[334033796,1722697840449,-500.0,0.00013698,2]
[334033797,1722697840460,-761.16,0.00013698,2]
[334033798,1722697840469,-500.0,0.00013698,2]
[334033799,1722697840479,-1312.24,0.00013698,2]
[334033800,1722697840489,-500.0,0.00013698,2]
[334033801,1722697840498,-500.0,0.00013698,2]
[334033802,1722697840508,-198.51416795,0.00013698,2]
[334033803,1722697840517,-243.23846212,0.00013698,2]
[334033804,1722697840527,-194.77894029,0.00013698,2]
[334033805,1722697840536,-162.18064451,0.00013698,2]
[334033806,1722697840545,-416.5,0.00013698,2]
[334033807,1722697840554,-500.0,0.00013698,2]
[334033808,1722697840563,-714.59,0.00013698,2]
[334033809,1722697840575,-884.11,0.00013698,2]
[334033810,1722697840584,-500.0,0.00013698,2]
[334033811,1722697840594,-1104.26,0.00013698,2]
[334033812,1722697840603,-1974.41,0.00013698,2]
[334033813,1722697840613,-500.0,0.00013698,2]
[334033814,1722697840623,-939.46,0.00013698,2]
[334033815,1722697840633,-500.0,0.00013698,2]
[334033816,1722697840643,-881.4,0.00013698,2]
[334033817,1722697840652,-637.03010487,0.00013831,2]
[334033818,1722697840661,-6510.32032038,0.00013872,2]
[334033819,1722697840671,-19700.0976163,0.0001396,2]
[334033820,1722697840680,-19700.0976163,0.00013962,2]
[334033821,1722697840690,-1530.17,0.0001397,2]
[334033822,1722697840700,-1530.17,0.00013971,2]
[334033823,1722697840710,-292.59673497,0.00013971,2]
[334033824,1722697840720,-306.31110823,0.00013971,2]
[334033825,1722697840730,-500.0,0.00013971,2]
[334033826,1722697840741,-620.70639436,0.00013971,2]
[334033827,1722697840751,-500.0,0.00013971,2]
[334033828,1722697840762,-500.0,0.00013971,2]
[334033829,1722697840773,-500.0,0.00013971,2]
[334033830,1722697840784,-500.0,0.00013971,2]
[334033831,1722697840794,-500.0,0.00013971,2]
[334033832,1722697840811,-500.0,0.00013971,2]
[334033833,1722697840822,-500.0,0.00013971,2]
[334033834,1722697840834,-500.0,0.00013971,2]
[334033835,1722697840844,-500.0,0.00013971,2]
[334033836,1722697840856,-500.0,0.00013971,2]
[334033837,1722697840867,-500.0,0.00013971,2]
[334033838,1722697840878,-500.0,0.00013971,2]
[334033839,1722697840887,-500.0,0.00013971,2]
[334033840,1722697840898,-500.0,0.00013971,2]
[334033841,1722697840907,-500.0,0.00013971,2]
[334033842,1722697840917,-500.0,0.00013971,2]
[334033843,1722697840927,-500.0,0.00013971,2]
[334033844,1722697840938,-500.0,0.00013971,2]
[334033845,1722697840948,-500.0,0.00013971,2]
[334033846,1722697840958,-500.0,0.00013971,2]
[334033847,1722697840968,-529.99834097,0.00013971,2]
[334033848,1722697840978,-500.0,0.00013971,2]
[334033849,1722697840987,-1862.14483691,0.00013972,5]
[334033850,1722697840996,-500.0,0.00013972,2]
[334033851,1722697841006,-551.57,0.00013972,2]
[334033852,1722697841016,-500.0,0.00013972,2]
[334033853,1722697841028,-500.0,0.00013972,2]
[334033854,1722697841038,-500.0,0.00013972,2]
[334033855,1722697841049,-1035.61,0.00013972,2]
[334033856,1722697841060,-500.0,0.00013972,2]
[334033857,1722697841071,-500.0,0.00013972,2]
[334033858,1722697841081,-500.0,0.00013972,2]
[334033859,1722697841091,-500.0,0.00013972,2]
[334033860,1722697841102,-500.0,0.00013972,2]
[334033861,1722697841115,-500.0,0.00013972,2]
[334033862,1722697841127,-500.0,0.00013972,2]
[334033863,1722697841138,-611.65,0.00013972,2]
[334033864,1722697841148,-500.0,0.00013972,2]
[334033865,1722697841159,-500.0,0.00013972,2]
[334033866,1722697841168,-500.0,0.00013972,2]
[334033867,1722697841178,-674.06,0.00013972,2]
[334033868,1722697841189,-500.0,0.00013972,2]
[334033869,1722697841200,-500.0,0.00013972,2]
[334033870,1722697841210,-946.21,0.00013972,2]
[334033871,1722697841220,-632.26,0.00013972,2]
[334033872,1722697841231,-500.0,0.00013972,2]
[334033873,1722697841241,-500.0,0.00013972,2]
[334033874,1722697841251,-635.2,0.00013972,2]
[334033875,1722697841260,-500.0,0.00013972,2]
[334033876,1722697841271,-500.0,0.00013972,2]
[334033877,1722697841281,-332.9,0.00013972,2]
[334033878,1722697841370,-1186.13,0.00013972,2]
[334033879,1722697841383,-1575.72,0.00013972,2]
[334033880,1722697841394,-1806.53,0.00013972,2]
[334033881,1722697841404,-745.9,0.00013972,2]
[334033882,1722697841415,-500.0,0.00013972,2]
[334033883,1722697841425,-500.0,0.00013972,2]
[334033884,1722697841435,-500.0,0.00013972,2]
[334033885,1722697841447,-4880.44,0.00013972,2]
[334033886,1722697841458,-1608.32,0.00013972,2]
[334033887,1722697841468,-500.0,0.00013972,2]
[334033888,1722697841478,-500.0,0.00013972,2]
[334033889,1722697841488,-6081.52,0.00013972,2]
[334033890,1722697841498,-500.0,0.00013972,2]
[334033891,1722697841508,-500.0,0.00013972,2]
[334033892,1722697841517,-500.0,0.00013972,2]
[334033893,1722697841527,-1929.14,0.00013972,2]
[334033894,1722697841537,-500.0,0.00013972,2]
[334033895,1722697841547,-504.3,0.00013972,2]
[334033896,1722697841558,-938.51,0.00013972,2]
[334033897,1722697841567,-500.0,0.00013972,2]
[334033898,1722697841579,-760.73,0.00013972,2]
[334033899,1722697841589,-500.0,0.00013972,2]
[334033900,1722697841600,-500.0,0.00013972,2]
[334033901,1722697841610,-500.0,0.00013972,2]
[334033902,1722697841621,-1630.14,0.00013972,2]
[334033903,1722697841634,-500.0,0.00013972,2]
[334033904,1722697841646,-500.0,0.00013972,2]
[334033905,1722697841657,-1540.59,0.00013972,2]
[334033906,1722697841667,-500.0,0.00013972,2]
[334033907,1722697841678,-500.0,0.00013972,2]
[334033908,1722697841688,-627.6,0.00013972,2]
[334033909,1722697841697,-500.0,0.00013972,2]
[334033910,1722697841708,-500.0,0.00013972,2]
[334033911,1722697841718,-730.68,0.00013972,2]
[334033912,1722697841729,-500.0,0.00013972,2]
[334033913,1722697841739,-898.02,0.00013972,2]
[334033914,1722697841750,-500.0,0.00013972,2]
[334033915,1722697841762,-500.0,0.00013972,2]
[334033916,1722697841772,-500.0,0.00013972,2]
[334033917,1722697841781,-5217.92,0.00013972,2]
[334033918,1722697841792,-500.0,0.00013972,2]
[334033919,1722697841803,-500.0,0.00013972,2]
[334033920,1722697841814,-2292.94,0.00013972,2]
[334033921,1722697841827,-500.0,0.00013972,2]
[334033922,1722697841837,-3440.08,0.00013972,2]
[334033923,1722697841847,-700.88,0.00013972,2]
[334033924,1722697841857,-500.0,0.00013972,2]
[334033925,1722697841868,-1397.4,0.00013972,2]
[334033926,1722697841877,-500.0,0.00013972,2]
[334033927,1722697841888,-842.22,0.00013972,2]
[334033928,1722697841898,-742.61,0.00013972,2]
[334033929,1722697841909,-500.0,0.00013972,2]
[334033930,1722697841919,-544.94,0.00013972,2]
[334033931,1722697841928,-500.0,0.00013972,2]
[334033932,1722697841939,-761.16,0.00013972,2]
[334033933,1722697841949,-500.0,0.00013972,2]
[334033934,1722697841958,-1312.24,0.00013972,2]
[334033935,1722697841968,-500.0,0.00013972,2]
[334033936,1722697841977,-714.59,0.00013972,2]
[334033937,1722697841987,-884.11,0.00013972,2]
[334033938,1722697841997,-1104.26,0.00013972,2]
[334033939,1722697842009,-1974.41,0.00013972,2]
[334033940,1722697842021,-500.0,0.00013972,2]
[334033941,1722697842032,-939.46,0.00013972,2]
[334033942,1722697842042,-500.0,0.00013972,2]
[334033943,1722697842051,-881.4,0.00013972,2]
[334033944,1722697842061,-637.03010487,0.00014146,2]
[334033945,1722697842072,-300.0,0.000142,5]
[334033946,1722697842083,-19700.0976163,0.00014225,2]
[334033947,1722697842092,-39400.1952326,0.00014236,2]
[334033948,1722697842102,-1530.17,0.00014244,2]
[334033949,1722697842114,-1530.17,0.00014245,2]
[334033950,1722697842126,-500.0,0.00014246,2]
[334033951,1722697842136,-551.57,0.00014246,2]
[334033952,1722697842146,-500.0,0.00014246,2]
[334033953,1722697842157,-500.0,0.00014246,2]
[334033954,1722697842166,-500.0,0.00014246,2]
[334033955,1722697842176,-1035.61,0.00014246,2]
[334033956,1722697842186,-500.0,0.00014246,2]
[334033957,1722697842196,-500.0,0.00014246,2]
[334033958,1722697842206,-500.0,0.00014246,2]
[334033959,1722697842215,-500.0,0.00014246,2]
[334033960,1722697842225,-500.0,0.00014246,2]
[334033961,1722697842235,-525.64067369,0.00014246,2]
[334033962,1722697842244,-500.0,0.00014246,2]
[334033963,1722697842254,-611.65,0.00014246,2]
[334033964,1722697842263,-500.0,0.00014246,2]
[334033965,1722697842273,-674.06,0.00014246,2]
[334033966,1722697842284,-500.0,0.00014246,2]
[334033967,1722697842295,-946.21,0.00014246,2]
[334033968,1722697842306,-632.26,0.00014246,2]
[334033969,1722697842318,-500.0,0.00014246,2]
[334033970,1722697842330,-500.0,0.00014246,2]
[334033971,1722697842340,-635.2,0.00014246,2]
[334033972,1722697842350,-500.0,0.00014246,2]
[334033973,1722697842361,-500.0,0.00014246,2]
[334033974,1722697842373,-1186.13,0.00014246,2]
[334033975,1722697842383,-1575.72,0.00014246,2]
[334033976,1722697842394,-1806.53,0.00014246,2]
[334033977,1722697842405,-745.9,0.00014246,2]
[334033978,1722697842414,-434.61283012,0.00014246,2]
[334033979,1722697842424,-500.0,0.00014246,2]
[334033980,1722697842434,-500.0,0.00014246,2]
[334033981,1722697842444,-4880.44,0.00014246,2]
[334033982,1722697842454,-1608.32,0.00014246,2]
[334033983,1722697842466,-500.0,0.00014246,2]
[334033984,1722697842476,-313.46,0.00014246,2]
[334033985,1722697842487,-6081.52,0.00014246,2]
[334033986,1722697842497,-500.0,0.00014246,2]
[334033987,1722697842508,-500.0,0.00014246,2]
[334033988,1722697842520,-500.0,0.00014246,2]
[334033989,1722697842530,-1929.14,0.00014246,2]
[334033990,1722697842539,-500.0,0.00014246,2]
[334033991,1722697842549,-504.3,0.00014246,2]
[334033992,1722697842558,-938.51,0.00014246,2]
[334033993,1722697842568,-500.0,0.00014246,2]
[334033994,1722697842578,-760.73,0.00014246,2]
[334033995,1722697842588,-500.0,0.00014246,2]
[334033996,1722697842597,-500.0,0.00014246,2]
[334033997,1722697842607,-500.0,0.00014246,2]
[334033998,1722697842616,-1630.14,0.00014246,2]
[334033999,1722697842626,-500.0,0.00014246,2]
[334034000,1722697842635,-500.0,0.00014246,2]
[334034001,1722697842646,-1540.59,0.00014246,2]
[334034002,1722697842656,-500.0,0.00014246,2]
[334034003,1722697842666,-500.0,0.00014246,2]
[334034004,1722697842675,-627.6,0.00014246,2]
[334034005,1722697842685,-500.0,0.00014246,2]
[334034006,1722697842695,-500.0,0.00014246,2]
[334034007,1722697842704,-730.68,0.00014246,2]
[334034008,1722697842714,-500.0,0.00014246,2]
[334034010,1722697842724,-898.02,0.00014246,2]
[334034012,1722697842735,-500.0,0.00014246,2]
[334034013,1722697842745,-500.0,0.00014246,2]
[334034014,1722697842755,-5217.92,0.00014246,2]
[334034015,1722697842764,-542.9691609,0.00014246,2]
[334034016,1722697842773,-500.0,0.00014246,2]
[334034017,1722697842784,-2292.94,0.00014246,2]
[334034018,1722697842794,-500.0,0.00014246,2]
[334034019,1722697842803,-3440.08,0.00014246,2]
[334034020,1722697842812,-700.88,0.00014246,2]
[334034021,1722697842823,-500.0,0.00014246,2]
[334034022,1722697842833,-1397.4,0.00014246,2]
[334034023,1722697842843,-500.0,0.00014246,2]
[334034024,1722697842852,-842.22,0.00014246,2]
[334034025,1722697842862,-742.61,0.00014246,2]
[334034026,1722697842872,-500.0,0.00014246,2]
[334034028,1722697842881,-544.94,0.00014246,2]
[334034031,1722697842891,-500.0,0.00014246,2]
[334034033,1722697842900,-761.16,0.00014246,2]
[334034036,1722697842910,-500.0,0.00014246,2]
[334034038,1722697842919,-1312.24,0.00014246,2]
[334034040,1722697842928,-500.0,0.00014246,2]
[334034042,1722697842938,-714.59,0.00014246,2]
[334034044,1722697842947,-884.11,0.00014246,2]
[334034047,1722697842958,-1104.26,0.00014246,2]
[334034050,1722697842968,-1974.41,0.00014246,2]
[334034052,1722697842979,-500.0,0.00014246,2]
[334034054,1722697842989,-939.46,0.00014246,2]
[334034055,1722697842999,-500.0,0.00014246,2]
[334034056,1722697843009,-881.4,0.00014246,2]
[334034057,1722697843019,-676.875,0.00014247,2]
[334034058,1722697843030,-604.172905,0.00014247,2]
[334034059,1722697843041,-200.0,0.00014273,2]
[334034060,1722697843051,-200.0,0.00014273,2]
[334034061,1722697843061,-1410.0,0.00014307,2]
[334034062,1722697843073,-964.94778795,0.0001432,2]
[334034063,1722697843082,-150.0,0.0001441,2]
[334034064,1722697843092,-150.0,0.0001441,2]
[334034065,1722697843102,-506.0,0.0001441,2]
[334034066,1722697843115,-39400.1952326,0.0001441,2]
[334034067,1722697843126,-88888.0,0.0001442,2]
[334034068,1722697843137,-151.0,0.0001442,2]
[334034069,1722697843147,-151.225038,0.0001442,2]
[334034070,1722697843157,-151.0,0.0001442,2]
[334034071,1722697843166,-166.50947741,0.00014508,5]
[334034072,1722697843177,-19700.0976163,0.00014509,2]
[334034073,1722697843188,-1530.17,0.00014517,2]
[334034074,1722697843197,-1530.17,0.00014519,2]
[334034075,1722697843208,-151.0,0.00014519,2]
[334034076,1722697843219,-500.0,0.0001452,2]
[334034077,1722697843230,-551.57,0.0001452,2]
[334034078,1722697843240,-500.0,0.0001452,2]
[334034079,1722697843250,-500.0,0.0001452,2]
[334034080,1722697843260,-500.0,0.0001452,2]
[334034081,1722697843271,-1035.61,0.0001452,2]
[334034082,1722697843281,-500.0,0.0001452,2]
[334034083,1722697843292,-500.0,0.0001452,2]
[334034084,1722697843302,-500.0,0.0001452,2]
[334034085,1722697843391,-500.0,0.0001452,2]
[334034086,1722697843410,-500.0,0.0001452,2]
[334034087,1722697843420,-611.65,0.0001452,2]
[334034088,1722697843431,-500.0,0.0001452,2]
[334034089,1722697843443,-674.06,0.0001452,2]
[334034090,1722697843456,-500.0,0.0001452,2]